[Event "Titled Tuesday Blitz March 14 Early 2023"]
[White "Perez Rodriguez, Jennifer"]
[Black "Csonka, Balazs"]
[WhiteFideId "3507831"]
[BlackFideId "742910"]
[WhiteElo "2170"]
[BlackElo "2404"]
[Result "0-1"]
[Round "01"]
[TimeControl "180+2"]
[Date "2023.03.14"]
[WhiteClock "0:00:23"]
[BlackClock "0:01:04"]

1. e4 {[%clk 0:02:59]}  e5 {[%clk 0:02:58]} 2. Nf3 {[%clk 0:02:57]}  Nc6 {[%clk 0:02:59]} 3. Bb5 {[%clk 0:02:57]}  a6 {[%clk 0:02:57]} 4. Ba4 {[%clk 0:02:57]}  Nf6 {[%clk 0:02:57]} 5. d3 {[%clk 0:02:58]}  d6 {[%clk 0:02:46]} 6. Nc3 {[%clk 0:02:49]}  g6 {[%clk 0:02:44]} 7. Bg5 {[%clk 0:02:47]}  Bg7 {[%clk 0:02:39]} 8. d4 {[%clk 0:02:44]}  b5 {[%clk 0:02:20]} 9. Bb3 {[%clk 0:02:36]}  Nxd4 {[%clk 0:02:08]} 10. Nxd4 {[%clk 0:02:34]}  exd4 {[%clk 0:02:09]} 11. Qxd4 {[%clk 0:02:10]}  c5 {[%clk 0:01:59]} 12. Bxf6 {[%clk 0:02:07]}  cxd4 {[%clk 0:01:40]} 13. Bxg7 {[%clk 0:01:36]}  dxc3 {[%clk 0:01:22]} 14. Bxc3 {[%clk 0:01:24]}  O-O {[%clk 0:01:18]} 15. O-O-O {[%clk 0:01:22]}  Be6 {[%clk 0:01:17]} 16. e5 {[%clk 0:00:59]}  Bxb3 {[%clk 0:01:12]} 17. axb3 {[%clk 0:00:56]}  Qg5+ {[%clk 0:01:13]} 18. Kb1 {[%clk 0:00:53]}  dxe5 {[%clk 0:01:13]} 19. h4 {[%clk 0:00:52]}  Qxg2 {[%clk 0:01:12]} 20. Bxe5 {[%clk 0:00:50]}  Rad8 {[%clk 0:01:10]} 21. Rdf1 {[%clk 0:00:38]}  Rfe8 {[%clk 0:01:08]} 22. Bf6 {[%clk 0:00:28]}  Rd6 {[%clk 0:01:07]} 23. Bc3 {[%clk 0:00:25]}  h5 {[%clk 0:01:06]} 24. Rhg1 {[%clk 0:00:23]}  Qh3 {[%clk 0:01:04]} 0-1


[Site "https://www.chess.com"]

[Event "Titled Tuesday Blitz March 14 Early 2023"]
[White "Weetik, Vjacheslav"]
[Black "Zaksaite, Salomeja"]
[WhiteFideId "4153472"]
[BlackFideId "12801496"]
[WhiteElo "2469"]
[BlackElo "2059"]
[Result "1-0"]
[Round "01"]
[TimeControl "180+2"]
[Date "2023.03.14"]
[WhiteClock "0:00:02"]
[BlackClock "0:00:01"]

1. d4 {[%clk 0:02:53]}  Nf6 {[%clk 0:02:59]} 2. Bf4 {[%clk 0:02:42]}  g6 {[%clk 0:03:00]} 3. Nf3 {[%clk 0:02:41]}  Bg7 {[%clk 0:03:00]} 4. e3 {[%clk 0:02:24]}  d6 {[%clk 0:02:55]} 5. c4 {[%clk 0:02:23]}  O-O {[%clk 0:02:55]} 6. Nc3 {[%clk 0:02:22]}  c5 {[%clk 0:02:53]} 7. d5 {[%clk 0:02:16]}  Nh5 {[%clk 0:02:37]} 8. Bg5 {[%clk 0:02:15]}  h6 {[%clk 0:02:36]} 9. Bh4 {[%clk 0:02:14]}  g5 {[%clk 0:02:36]} 10. Nd2 {[%clk 0:02:10]}  Bxc3 {[%clk 0:01:45]} 11. bxc3 {[%clk 0:02:07]}  Ng7 {[%clk 0:01:38]} 12. Bg3 {[%clk 0:02:07]}  f5 {[%clk 0:01:36]} 13. f4 {[%clk 0:01:42]}  e5 {[%clk 0:01:27]} 14. fxe5 {[%clk 0:01:33]}  f4 {[%clk 0:01:26]} 15. exf4 {[%clk 0:01:33]}  gxf4 {[%clk 0:01:09]} 16. Bf2 {[%clk 0:01:32]}  dxe5 {[%clk 0:00:58]} 17. Ne4 {[%clk 0:01:22]}  b6 {[%clk 0:00:43]} 18. Bd3 {[%clk 0:01:01]}  Bf5 {[%clk 0:00:43]} 19. g4 {[%clk 0:00:52]}  fxg3 {[%clk 0:00:31]} 20. hxg3 {[%clk 0:00:48]}  h5 {[%clk 0:00:15]} 21. Be3 {[%clk 0:00:22]}  Nd7 {[%clk 0:00:13]} 22. Ng5 {[%clk 0:00:07]}  Bg4 {[%clk 0:00:11]} 23. Bh7+ {[%clk 0:00:05]}  Kh8 {[%clk 0:00:10]} 24. Qxg4 {[%clk 0:00:05]}  hxg4 {[%clk 0:00:08]} 25. Bg6+ {[%clk 0:00:06]}  Kg8 {[%clk 0:00:08]} 26. Bh7+ {[%clk 0:00:05]}  Kh8 {[%clk 0:00:08]} 27. Bg6+ {[%clk 0:00:05]}  Kg8 {[%clk 0:00:09]} 28. Bf7+ {[%clk 0:00:03]}  Rxf7 {[%clk 0:00:08]} 29. Rh8+ {[%clk 0:00:04]}  Kxh8 {[%clk 0:00:08]} 30. Nxf7+ {[%clk 0:00:05]}  Kg8 {[%clk 0:00:08]} 31. Nxd8 {[%clk 0:00:06]}  Rxd8 {[%clk 0:00:09]} 32. a4 {[%clk 0:00:04]}  a5 {[%clk 0:00:08]} 33. Rb1 {[%clk 0:00:04]}  Nf5 {[%clk 0:00:08]} 34. Bg5 {[%clk 0:00:02]}  Re8 {[%clk 0:00:07]} 35. Kf2 {[%clk 0:00:02]}  e4 {[%clk 0:00:07]} 36. Re1 {[%clk 0:00:02]}  Kf7 {[%clk 0:00:07]} 37. Bf4 {[%clk 0:00:02]}  Kg6 {[%clk 0:00:06]} 38. Rh1 {[%clk 0:00:02]}  e3+ {[%clk 0:00:06]} 39. Ke2 {[%clk 0:00:03]}  Nf6 {[%clk 0:00:03]} 40. Rb1 {[%clk 0:00:02]}  Ne4 {[%clk 0:00:02]} 41. Kd3 {[%clk 0:00:03]}  Nf2+ {[%clk 0:00:01]} 42. Ke2 {[%clk 0:00:02]}  Ne4 {[%clk 0:00:01]} 43. Rxb6+ {[%clk 0:00:03]}  Kf7 {[%clk 0:00:01]} 44. Rb7+ {[%clk 0:00:03]}  Kf8 {[%clk 0:00:01]} 45. Kd3 {[%clk 0:00:02]} 1-0


[Site "https://www.chess.com"]

[Event "Titled Tuesday Blitz March 14 Early 2023"]
[White "Botez, Alexandra"]
[Black "Tillyaev, Ulugbek"]
[WhiteFideId "2603365"]
[BlackFideId "14202441"]
[WhiteElo "2059"]
[BlackElo "2377"]
[Result "0-1"]
[Round "01"]
[TimeControl "180+2"]
[Date "2023.03.14"]
[WhiteClock "0:00:05"]
[BlackClock "0:00:28"]

1. d4 {[%clk 0:02:59]}  e6 {[%clk 0:02:59]} 2. c4 {[%clk 0:02:57]}  b6 {[%clk 0:02:54]} 3. Nf3 {[%clk 0:02:57]}  Bb7 {[%clk 0:02:54]} 4. g3 {[%clk 0:02:58]}  Nf6 {[%clk 0:02:50]} 5. Bg2 {[%clk 0:02:57]}  Bb4+ {[%clk 0:02:50]} 6. Bd2 {[%clk 0:02:56]}  a5 {[%clk 0:02:50]} 7. O-O {[%clk 0:02:56]}  Bxd2 {[%clk 0:02:50]} 8. Nbxd2 {[%clk 0:02:55]}  d6 {[%clk 0:02:49]} 9. Qc2 {[%clk 0:02:55]}  Nbd7 {[%clk 0:02:47]} 10. e4 {[%clk 0:02:54]}  O-O {[%clk 0:02:47]} 11. Rfe1 {[%clk 0:02:49]}  e5 {[%clk 0:02:47]} 12. Rad1 {[%clk 0:02:38]}  Re8 {[%clk 0:02:42]} 13. b3 {[%clk 0:02:34]}  h6 {[%clk 0:02:32]} 14. Nb1 {[%clk 0:02:19]}  Qe7 {[%clk 0:01:26]} 15. Nc3 {[%clk 0:02:14]}  c6 {[%clk 0:01:20]} 16. h3 {[%clk 0:02:12]}  Rad8 {[%clk 0:01:19]} 17. a4 {[%clk 0:02:04]}  g6 {[%clk 0:01:15]} 18. Kh2 {[%clk 0:02:00]}  Qf8 {[%clk 0:01:13]} 19. d5 {[%clk 0:01:58]}  cxd5 {[%clk 0:01:10]} 20. Nxd5 {[%clk 0:01:49]}  Bxd5 {[%clk 0:01:08]} 21. exd5 {[%clk 0:01:45]}  Nc5 {[%clk 0:01:08]} 22. Re2 {[%clk 0:01:37]}  Nh5 {[%clk 0:01:02]} 23. Rde1 {[%clk 0:01:32]}  f5 {[%clk 0:01:02]} 24. Rd1 {[%clk 0:00:56]}  Qf6 {[%clk 0:00:59]} 25. Rde1 {[%clk 0:00:56]}  e4 {[%clk 0:00:59]} 26. Nd2 {[%clk 0:00:54]}  Qd4 {[%clk 0:00:54]} 27. Nf1 {[%clk 0:00:45]}  Nf6 {[%clk 0:00:43]} 28. Rd1 {[%clk 0:00:44]}  Nd3 {[%clk 0:00:42]} 29. Ne3 {[%clk 0:00:43]}  Qe5 {[%clk 0:00:41]} 30. Nf1 {[%clk 0:00:39]}  h5 {[%clk 0:00:38]} 31. Qb1 {[%clk 0:00:23]}  Nc5 {[%clk 0:00:33]} 32. f4 {[%clk 0:00:18]}  Qc3 {[%clk 0:00:31]} 33. Re3 {[%clk 0:00:18]}  Nd3 {[%clk 0:00:31]} 34. Nd2 {[%clk 0:00:16]}  h4 {[%clk 0:00:30]} 35. gxh4 {[%clk 0:00:15]}  Qd4 {[%clk 0:00:30]} 36. Nf1 {[%clk 0:00:14]}  Nh5 {[%clk 0:00:29]} 37. Qc2 {[%clk 0:00:05]}  Nhxf4 {[%clk 0:00:29]} 38. Qd2 {[%clk 0:00:02]}  Qe5 {[%clk 0:00:29]} 39. Kh1 {[%clk 0:00:02]}  Nh5 {[%clk 0:00:29]} 40. Nh2 {[%clk 0:00:01]}  Ng3+ {[%clk 0:00:28]} 41. Kg1 {[%clk 0:00:01]}  f4 {[%clk 0:00:29]} 42. Qxd3 {[%clk 0:00:01]}  exd3 {[%clk 0:00:28]} 43. Rxe5 {[%clk 0:00:02]}  dxe5 {[%clk 0:00:28]} 44. Rxd3 {[%clk 0:00:02]}  e4 {[%clk 0:00:29]} 45. Rxg3 {[%clk 0:00:02]}  fxg3 {[%clk 0:00:29]} 46. Nf1 {[%clk 0:00:03]}  e3 {[%clk 0:00:30]} 47. Nxe3 {[%clk 0:00:01]}  Rxe3 {[%clk 0:00:29]} 48. Bf1 {[%clk 0:00:02]}  Re1 {[%clk 0:00:29]} 49. Kg2 {[%clk 0:00:02]}  Rf8 {[%clk 0:00:28]} 50. Bd3 {[%clk 0:00:02]}  Rff1 {[%clk 0:00:29]} 51. Kxg3 {[%clk 0:00:01]}  Re3+ {[%clk 0:00:29]} 52. Kg2 {[%clk 0:00:01]}  Rxd3 {[%clk 0:00:30]} 53. Kxf1 {[%clk 0:00:01]}  Rxb3 {[%clk 0:00:30]} 54. Ke2 {[%clk 0:00:02]}  Rc3 {[%clk 0:00:28]} 55. Kd2 {[%clk 0:00:02]}  Rxc4 {[%clk 0:00:28]} 56. Kd3 {[%clk 0:00:03]}  Rxa4 {[%clk 0:00:28]} 57. d6 {[%clk 0:00:04]}  Kf7 {[%clk 0:00:28]} 58. d7 {[%clk 0:00:05]}  Ke7 {[%clk 0:00:28]} 0-1


[Site "https://www.chess.com"]

[Event "Titled Tuesday Blitz March 14 Early 2023"]
[White "Kowalysko, Roman"]
[Black "Seemann, Jakub"]
[WhiteFideId "30918510"]
[BlackFideId "21874697"]
[WhiteElo "2243"]
[BlackElo "2364"]
[Result "0-1"]
[Round "01"]
[TimeControl "180+2"]
[Date "2023.03.14"]
[WhiteClock "0:00:20"]
[BlackClock "0:00:49"]

1. e4 {[%clk 0:03:00]}  e6 {[%clk 0:02:58]} 2. d4 {[%clk 0:03:00]}  d5 {[%clk 0:02:58]} 3. Bd3 {[%clk 0:02:57]}  c5 {[%clk 0:02:57]} 4. exd5 {[%clk 0:02:56]}  exd5 {[%clk 0:02:57]} 5. Nf3 {[%clk 0:02:57]}  Nf6 {[%clk 0:02:55]} 6. O-O {[%clk 0:02:55]}  c4 {[%clk 0:02:56]} 7. Be2 {[%clk 0:02:55]}  Nc6 {[%clk 0:02:55]} 8. b3 {[%clk 0:02:55]}  cxb3 {[%clk 0:02:55]} 9. axb3 {[%clk 0:02:55]}  Bd6 {[%clk 0:02:54]} 10. c4 {[%clk 0:02:55]}  O-O {[%clk 0:02:52]} 11. Nc3 {[%clk 0:02:54]}  dxc4 {[%clk 0:02:48]} 12. bxc4 {[%clk 0:02:54]}  Bg4 {[%clk 0:02:47]} 13. c5 {[%clk 0:02:54]}  Bb8 {[%clk 0:02:38]} 14. Nb5 {[%clk 0:02:55]}  Nd5 {[%clk 0:02:35]} 15. h3 {[%clk 0:02:48]}  Bh5 {[%clk 0:02:32]} 16. Re1 {[%clk 0:02:43]}  a6 {[%clk 0:02:31]} 17. Bb2 {[%clk 0:02:36]}  Nf4 {[%clk 0:02:26]} 18. d5 {[%clk 0:02:03]}  Nxd5 {[%clk 0:02:07]} 19. Nfd4 {[%clk 0:01:55]}  Bxe2 {[%clk 0:02:00]} 20. Qxe2 {[%clk 0:01:53]}  Nxd4 {[%clk 0:01:49]} 21. Nxd4 {[%clk 0:01:47]}  Qg5 {[%clk 0:01:46]} 22. Nf3 {[%clk 0:01:45]}  Qf5 {[%clk 0:01:43]} 23. Qe4 {[%clk 0:01:36]}  Qxe4 {[%clk 0:01:41]} 24. Rxe4 {[%clk 0:01:37]}  Bc7 {[%clk 0:01:40]} 25. Rg4 {[%clk 0:01:34]}  f6 {[%clk 0:01:39]} 26. Nd4 {[%clk 0:01:27]}  Rfe8 {[%clk 0:01:37]} 27. Nf5 {[%clk 0:01:26]}  g6 {[%clk 0:01:31]} 28. Nh6+ {[%clk 0:01:25]}  Kg7 {[%clk 0:01:27]} 29. Nf5+ {[%clk 0:01:25]}  Kf8 {[%clk 0:01:23]} 30. Nd4 {[%clk 0:00:52]}  Be5 {[%clk 0:01:15]} 31. Ba3 {[%clk 0:00:41]}  Kf7 {[%clk 0:01:11]} 32. Nf3 {[%clk 0:00:41]}  Bxa1 {[%clk 0:01:08]} 33. h4 {[%clk 0:00:38]}  h5 {[%clk 0:01:07]} 34. Rg3 {[%clk 0:00:38]}  Rad8 {[%clk 0:01:03]} 35. Bc1 {[%clk 0:00:35]}  Nc3 {[%clk 0:00:55]} 36. Bd2 {[%clk 0:00:33]}  Ne2+ {[%clk 0:00:54]} 37. Kh2 {[%clk 0:00:33]}  Nxg3 {[%clk 0:00:54]} 38. Kxg3 {[%clk 0:00:34]}  Be5+ {[%clk 0:00:54]} 39. Kh3 {[%clk 0:00:34]}  Bc7 {[%clk 0:00:54]} 40. Be3 {[%clk 0:00:34]}  Rd3 {[%clk 0:00:52]} 41. Ne1 {[%clk 0:00:32]}  Rexe3+ {[%clk 0:00:51]} 42. fxe3 {[%clk 0:00:31]}  Rxe3+ {[%clk 0:00:52]} 43. Nf3 {[%clk 0:00:32]}  g5 {[%clk 0:00:53]} 44. hxg5 {[%clk 0:00:32]}  fxg5 {[%clk 0:00:53]} 45. g4 {[%clk 0:00:28]}  Rxf3+ {[%clk 0:00:53]} 46. Kg2 {[%clk 0:00:28]}  hxg4 {[%clk 0:00:53]} 47. Kg1 {[%clk 0:00:28]}  Ra3 {[%clk 0:00:52]} 48. c6 {[%clk 0:00:28]}  bxc6 {[%clk 0:00:51]} 49. Kf2 {[%clk 0:00:29]}  Rf3+ {[%clk 0:00:51]} 50. Kg2 {[%clk 0:00:29]}  a5 {[%clk 0:00:52]} 51. Kg1 {[%clk 0:00:30]}  a4 {[%clk 0:00:53]} 52. Kh1 {[%clk 0:00:30]}  a3 {[%clk 0:00:54]} 53. Kg1 {[%clk 0:00:30]}  a2 {[%clk 0:00:55]} 54. Kg2 {[%clk 0:00:31]}  Rg3+ {[%clk 0:00:50]} 55. Kh2 {[%clk 0:00:31]}  Rg1+ {[%clk 0:00:49]} 56. Kxg1 {[%clk 0:00:29]}  a1=Q+ {[%clk 0:00:49]} 57. Kg2 {[%clk 0:00:29]}  Qb2+ {[%clk 0:00:48]} 58. Kf1 {[%clk 0:00:28]}  g3 {[%clk 0:00:48]} 59. Ke1 {[%clk 0:00:21]}  Bf4 {[%clk 0:00:49]} 60. Kd1 {[%clk 0:00:20]}  Qd2# {[%clk 0:00:49]} 0-1


[Site "https://www.chess.com"]

[Event "Titled Tuesday Blitz March 14 Early 2023"]
[White "Kornyukov, Alexey"]
[Black "Rosen, Eric"]
[WhiteFideId "4150457"]
[BlackFideId "2032562"]
[WhiteElo "2352"]
[BlackElo "2331"]
[Result "1-0"]
[Round "01"]
[TimeControl "180+2"]
[Date "2023.03.14"]
[WhiteClock "0:00:08"]
[BlackClock "0:00:04"]

1. e4 {[%clk 0:02:56]}  c5 {[%clk 0:02:59]} 2. Nf3 {[%clk 0:02:51]}  Nc6 {[%clk 0:02:59]} 3. c3 {[%clk 0:02:44]}  d5 {[%clk 0:02:58]} 4. exd5 {[%clk 0:02:40]}  Qxd5 {[%clk 0:02:58]} 5. d4 {[%clk 0:02:40]}  Nf6 {[%clk 0:02:58]} 6. Be2 {[%clk 0:02:32]}  e6 {[%clk 0:02:58]} 7. O-O {[%clk 0:02:30]}  Be7 {[%clk 0:02:54]} 8. Be3 {[%clk 0:02:26]}  cxd4 {[%clk 0:02:52]} 9. cxd4 {[%clk 0:02:25]}  O-O {[%clk 0:02:53]} 10. Nc3 {[%clk 0:02:25]}  Qd6 {[%clk 0:02:53]} 11. Qd2 {[%clk 0:02:14]}  Nb4 {[%clk 0:02:49]} 12. Bf4 {[%clk 0:02:11]}  Qd8 {[%clk 0:02:49]} 13. a3 {[%clk 0:02:02]}  Nbd5 {[%clk 0:02:49]} 14. Nxd5 {[%clk 0:02:02]}  Nxd5 {[%clk 0:02:50]} 15. Bg3 {[%clk 0:02:02]}  b6 {[%clk 0:02:48]} 16. Rac1 {[%clk 0:02:00]}  Bb7 {[%clk 0:02:48]} 17. Ne5 {[%clk 0:01:55]}  Bd6 {[%clk 0:02:32]} 18. Bf3 {[%clk 0:01:52]}  Qe7 {[%clk 0:02:27]} 19. Rfe1 {[%clk 0:01:49]}  Rfd8 {[%clk 0:02:18]} 20. h3 {[%clk 0:01:48]}  Nf6 {[%clk 0:01:54]} 21. Nc6 {[%clk 0:01:30]}  Bxc6 {[%clk 0:01:50]} 22. Rxc6 {[%clk 0:01:28]}  Bxg3 {[%clk 0:01:42]} 23. fxg3 {[%clk 0:01:25]}  Rac8 {[%clk 0:01:43]} 24. Rec1 {[%clk 0:01:18]}  Rxc6 {[%clk 0:01:39]} 25. Rxc6 {[%clk 0:01:17]}  Qd7 {[%clk 0:01:32]} 26. Kh2 {[%clk 0:01:12]}  h6 {[%clk 0:01:30]} 27. Qc3 {[%clk 0:01:03]}  Qxd4 {[%clk 0:01:14]} 28. Rc8 {[%clk 0:01:02]}  Qd7 {[%clk 0:01:06]} 29. Rc7 {[%clk 0:00:57]}  Qa4 {[%clk 0:00:58]} 30. Bc6 {[%clk 0:00:51]}  Qa6 {[%clk 0:00:50]} 31. b4 {[%clk 0:00:44]}  Qf1 {[%clk 0:00:38]} 32. Bf3 {[%clk 0:00:31]}  Nd5 {[%clk 0:00:33]} 33. Bxd5 {[%clk 0:00:29]}  Rxd5 {[%clk 0:00:34]} 34. Rc8+ {[%clk 0:00:29]}  Kh7 {[%clk 0:00:34]} 35. Qc2+ {[%clk 0:00:28]}  g6 {[%clk 0:00:25]} 36. Rc7 {[%clk 0:00:22]}  Kg7 {[%clk 0:00:17]} 37. Qc3+ {[%clk 0:00:22]}  e5 {[%clk 0:00:17]} 38. Rxa7 {[%clk 0:00:16]}  Qe2 {[%clk 0:00:15]} 39. Rc7 {[%clk 0:00:15]}  Rd2 {[%clk 0:00:14]} 40. Qc6 {[%clk 0:00:12]}  e4 {[%clk 0:00:12]} 41. Qc3+ {[%clk 0:00:09]}  Kf8 {[%clk 0:00:04]} 42. Qh8# {[%clk 0:00:08]} 1-0


[Site "https://www.chess.com"]

[Event "Titled Tuesday Blitz March 14 Early 2023"]
[White "Maksimenko, Viktor"]
[Black "Ardila, Oscar Humberto"]
[WhiteFideId "13710478"]
[BlackFideId "4404742"]
[WhiteElo "2277"]
[BlackElo "1911"]
[Result "1-0"]
[Round "01"]
[TimeControl "180+2"]
[Date "2023.03.14"]
[WhiteClock "0:00:28"]
[BlackClock "0:00:02"]

1. d4 {[%clk 0:03:00]}  Nf6 {[%clk 0:02:58]} 2. c4 {[%clk 0:03:00]}  g6 {[%clk 0:02:57]} 3. Nc3 {[%clk 0:02:59]}  Bg7 {[%clk 0:02:56]} 4. e4 {[%clk 0:02:59]}  O-O {[%clk 0:02:55]} 5. h3 {[%clk 0:02:58]}  d6 {[%clk 0:02:54]} 6. Be3 {[%clk 0:02:58]}  Nbd7 {[%clk 0:02:32]} 7. Nf3 {[%clk 0:02:56]}  e5 {[%clk 0:02:32]} 8. d5 {[%clk 0:02:56]}  Nc5 {[%clk 0:02:30]} 9. Nd2 {[%clk 0:02:56]}  c6 {[%clk 0:02:28]} 10. Be2 {[%clk 0:02:53]}  cxd5 {[%clk 0:02:28]} 11. cxd5 {[%clk 0:02:52]}  Bd7 {[%clk 0:02:24]} 12. O-O {[%clk 0:02:49]}  Rc8 {[%clk 0:02:21]} 13. Rc1 {[%clk 0:02:30]}  Qe7 {[%clk 0:02:19]} 14. b4 {[%clk 0:02:27]}  Na6 {[%clk 0:02:17]} 15. Qb3 {[%clk 0:02:24]}  Ra8 {[%clk 0:01:40]} 16. Nc4 {[%clk 0:02:19]}  Rfc8 {[%clk 0:01:36]} 17. Na5 {[%clk 0:02:16]}  Be8 {[%clk 0:01:35]} 18. a3 {[%clk 0:02:07]}  Nh5 {[%clk 0:01:21]} 19. Bxh5 {[%clk 0:02:03]}  gxh5 {[%clk 0:01:20]} 20. a4 {[%clk 0:01:54]}  Bf6 {[%clk 0:01:15]} 21. Nb5 {[%clk 0:01:50]}  Bxb5 {[%clk 0:01:03]} 22. axb5 {[%clk 0:01:51]}  Nc7 {[%clk 0:01:03]} 23. Qd3 {[%clk 0:01:28]}  Qd7 {[%clk 0:01:02]} 24. Nxb7 {[%clk 0:01:07]}  Qxb5 {[%clk 0:00:55]} 25. Qxb5 {[%clk 0:01:04]}  Nxb5 {[%clk 0:00:54]} 26. Na5 {[%clk 0:01:01]}  Nd4 {[%clk 0:00:50]} 27. Bxd4 {[%clk 0:00:54]}  exd4 {[%clk 0:00:50]} 28. Nc6 {[%clk 0:00:54]}  a6 {[%clk 0:00:45]} 29. f4 {[%clk 0:00:53]}  Re8 {[%clk 0:00:39]} 30. Rce1 {[%clk 0:00:50]}  h4 {[%clk 0:00:22]} 31. e5 {[%clk 0:00:47]}  dxe5 {[%clk 0:00:22]} 32. fxe5 {[%clk 0:00:48]}  Bg5 {[%clk 0:00:22]} 33. Nxd4 {[%clk 0:00:42]}  Rab8 {[%clk 0:00:21]} 34. Nc6 {[%clk 0:00:41]}  Rb5 {[%clk 0:00:21]} 35. d6 {[%clk 0:00:35]}  Bd2 {[%clk 0:00:21]} 36. Rd1 {[%clk 0:00:35]}  Bxb4 {[%clk 0:00:20]} 37. d7 {[%clk 0:00:34]}  Rf8 {[%clk 0:00:18]} 38. d8=Q {[%clk 0:00:34]}  Rxd8 {[%clk 0:00:16]} 39. Rxd8+ {[%clk 0:00:35]}  Kg7 {[%clk 0:00:15]} 40. Rd7 {[%clk 0:00:36]}  Bc5+ {[%clk 0:00:09]} 41. Kh1 {[%clk 0:00:35]}  Kg6 {[%clk 0:00:10]} 42. Rdxf7 {[%clk 0:00:34]}  Rb2 {[%clk 0:00:09]} 43. Ne7+ {[%clk 0:00:32]}  Kh5 {[%clk 0:00:02]} 44. Rxh7+ {[%clk 0:00:31]}  Kg5 {[%clk 0:00:01]} 45. Rg7+ {[%clk 0:00:31]}  Kh6 {[%clk 0:00:01]} 46. Rg6+ {[%clk 0:00:27]}  Kh7 {[%clk 0:00:02]} 47. Rf7+ {[%clk 0:00:28]}  Kh8 {[%clk 0:00:02]} 48. Rh6# {[%clk 0:00:28]} 1-0


[Site "https://www.chess.com"]

[Event "Titled Tuesday Blitz March 14 Early 2023"]
[White "Quirke, Jeffrey"]
[Black "Prokofiev, Valentyn"]
[WhiteFideId "2013029"]
[BlackFideId "14160161"]
[WhiteElo "2205"]
[BlackElo "2260"]
[Result "0-1"]
[Round "01"]
[TimeControl "180+2"]
[Date "2023.03.14"]
[WhiteClock "0:00:23"]
[BlackClock "0:00:57"]

1. e4 {[%clk 0:03:00]}  e5 {[%clk 0:02:59]} 2. Nf3 {[%clk 0:02:59]}  Nc6 {[%clk 0:03:00]} 3. Bb5 {[%clk 0:03:00]}  a6 {[%clk 0:03:00]} 4. Ba4 {[%clk 0:03:00]}  Nf6 {[%clk 0:03:00]} 5. Qe2 {[%clk 0:03:00]}  b5 {[%clk 0:03:00]} 6. Bb3 {[%clk 0:02:59]}  Bc5 {[%clk 0:03:01]} 7. O-O {[%clk 0:02:56]}  O-O {[%clk 0:02:59]} 8. d3 {[%clk 0:02:53]}  h6 {[%clk 0:02:45]} 9. c3 {[%clk 0:02:47]}  d6 {[%clk 0:02:40]} 10. h3 {[%clk 0:02:45]}  Be6 {[%clk 0:02:38]} 11. Nbd2 {[%clk 0:02:45]}  Re8 {[%clk 0:02:36]} 12. Rd1 {[%clk 0:02:44]}  d5 {[%clk 0:02:36]} 13. Bc2 {[%clk 0:02:34]}  d4 {[%clk 0:02:35]} 14. Nf1 {[%clk 0:02:30]}  Qd6 {[%clk 0:02:32]} 15. Ng3 {[%clk 0:02:27]}  Rad8 {[%clk 0:02:30]} 16. Nh4 {[%clk 0:02:25]}  Ne7 {[%clk 0:02:28]} 17. Kh1 {[%clk 0:02:10]}  Qd7 {[%clk 0:02:26]} 18. Kh2 {[%clk 0:02:04]}  Bb6 {[%clk 0:02:12]} 19. Rf1 {[%clk 0:02:00]}  g5 {[%clk 0:02:07]} 20. Nf3 {[%clk 0:01:58]}  Ng6 {[%clk 0:02:07]} 21. Nxg5 {[%clk 0:01:47]}  Nf4 {[%clk 0:01:42]} 22. Bxf4 {[%clk 0:01:31]}  exf4 {[%clk 0:01:43]} 23. Nxe6 {[%clk 0:01:16]}  fxg3+ {[%clk 0:01:42]} 24. fxg3 {[%clk 0:01:16]}  Qxe6 {[%clk 0:01:28]} 25. Bb3 {[%clk 0:01:15]}  Qe5 {[%clk 0:01:25]} 26. Qf3 {[%clk 0:01:02]}  Kg7 {[%clk 0:01:24]} 27. c4 {[%clk 0:00:48]}  c5 {[%clk 0:01:19]} 28. Rf2 {[%clk 0:00:37]}  b4 {[%clk 0:01:15]} 29. Raf1 {[%clk 0:00:36]}  Re6 {[%clk 0:01:15]} 30. Qe2 {[%clk 0:00:27]}  Bc7 {[%clk 0:01:13]} 31. Rf3 {[%clk 0:00:25]}  Qh5 {[%clk 0:00:57]} 32. Qf2 {[%clk 0:00:23]}  Ng4+ {[%clk 0:00:57]} 0-1


[Site "https://www.chess.com"]

[Event "Titled Tuesday Blitz March 14 Early 2023"]
[White "Guzman, Christopher"]
[Black "Kiseleva, Arina"]
[WhiteFideId "6405096"]
[BlackFideId "4164989"]
[WhiteElo "2281"]
[BlackElo "1756"]
[Result "1-0"]
[Round "01"]
[TimeControl "180+2"]
[Date "2023.03.14"]
[WhiteClock "0:01:36"]
[BlackClock "0:00:15"]

1. e4 {[%clk 0:02:59]}  c6 {[%clk 0:02:01]} 2. d4 {[%clk 0:02:58]}  d5 {[%clk 0:02:02]} 3. exd5 {[%clk 0:02:59]}  cxd5 {[%clk 0:02:02]} 4. Bd3 {[%clk 0:03:00]}  Nf6 {[%clk 0:02:02]} 5. c3 {[%clk 0:03:01]}  Nc6 {[%clk 0:02:03]} 6. Bf4 {[%clk 0:03:01]}  Bg4 {[%clk 0:02:01]} 7. Qb3 {[%clk 0:03:01]}  Qb6 {[%clk 0:02:00]} 8. Na3 {[%clk 0:03:00]}  e6 {[%clk 0:01:57]} 9. Ne2 {[%clk 0:02:59]}  Qxb3 {[%clk 0:01:47]} 10. axb3 {[%clk 0:02:58]}  a6 {[%clk 0:01:48]} 11. b4 {[%clk 0:02:58]}  Rc8 {[%clk 0:01:45]} 12. Ng3 {[%clk 0:02:57]}  g6 {[%clk 0:01:38]} 13. b5 {[%clk 0:02:54]}  axb5 {[%clk 0:01:37]} 14. Nxb5 {[%clk 0:02:53]}  Bf5 {[%clk 0:01:34]} 15. Nxf5 {[%clk 0:02:49]}  gxf5 {[%clk 0:01:35]} 16. O-O {[%clk 0:02:45]}  Kd7 {[%clk 0:01:28]} 17. Ra2 {[%clk 0:02:38]}  Ne4 {[%clk 0:01:25]} 18. Rfa1 {[%clk 0:02:36]}  Nd6 {[%clk 0:01:23]} 19. f3 {[%clk 0:02:33]}  Nxb5 {[%clk 0:01:19]} 20. Bxb5 {[%clk 0:02:34]}  Bd6 {[%clk 0:01:20]} 21. Bd2 {[%clk 0:02:29]}  Kc7 {[%clk 0:01:14]} 22. Be3 {[%clk 0:02:22]}  Rhg8 {[%clk 0:01:13]} 23. b3 {[%clk 0:02:18]}  Rg6 {[%clk 0:01:12]} 24. c4 {[%clk 0:02:16]}  dxc4 {[%clk 0:01:09]} 25. bxc4 {[%clk 0:02:14]}  Rcg8 {[%clk 0:01:06]} 26. c5 {[%clk 0:02:06]}  Be7 {[%clk 0:00:49]} 27. Bf4+ {[%clk 0:02:06]}  Kd7 {[%clk 0:00:46]} 28. Rd1 {[%clk 0:01:57]}  Bg5 {[%clk 0:00:28]} 29. Bxg5 {[%clk 0:01:53]}  Rxg5 {[%clk 0:00:29]} 30. d5 {[%clk 0:01:53]}  exd5 {[%clk 0:00:25]} 31. Rxd5+ {[%clk 0:01:54]}  Ke7 {[%clk 0:00:21]} 32. Bxc6 {[%clk 0:01:47]}  bxc6 {[%clk 0:00:22]} 33. Ra7+ {[%clk 0:01:47]}  Ke6 {[%clk 0:00:20]} 34. Rd6+ {[%clk 0:01:46]}  Ke5 {[%clk 0:00:20]} 35. Re7+ {[%clk 0:01:38]}  Kf4 {[%clk 0:00:15]} 36. Rd4# {[%clk 0:01:36]} 1-0


[Site "https://www.chess.com"]